fUSD/lending_fUSD_20240728
["ID","MTS","AMOUNT","RATE_DAILY","PERIOD"]
[333490896,1722195041380,-307.2,0.00010999,2]
[333490897,1722195041389,-500.0,0.00010999,2]
[333490898,1722195041398,-607.62410544,0.00010999,2]
[333490899,1722195041407,-500.0,0.00010999,2]
[333490900,1722195041417,-384.69,0.00010999,2]
[333490901,1722195041426,-500.0,0.00010999,2]
[333490902,1722195041435,-500.0,0.00010999,2]
[333490903,1722195041445,-500.0,0.00010999,2]
[333490904,1722195041456,-355.35,0.00010999,2]
[333490905,1722195041467,-500.0,0.00010999,2]
[333490906,1722195041476,-500.0,0.00010999,2]
[333490907,1722195041485,-500.0,0.00010999,2]
[333490908,1722195041495,-500.0,0.00010999,2]
[333490909,1722195041504,-500.0,0.00010999,2]
[333490910,1722195041514,-175.33,0.00010999,2]
[333490911,1722195041524,-500.0,0.00010999,2]
[333490912,1722195041534,-500.0,0.00010999,2]
[333490913,1722195041544,-415.31,0.00010999,2]
[333490914,1722195041553,-500.0,0.00010999,2]
[333490915,1722195041563,-500.0,0.00010999,2]
[333490916,1722195041572,-500.0,0.00010999,2]
[333490917,1722195041581,-500.0,0.00010999,2]
[333490918,1722195041590,-500.0,0.00010999,2]
[333490919,1722195041599,-500.0,0.00010999,2]
[333490920,1722195041608,-500.0,0.00010999,2]
[333490921,1722195041617,-500.0,0.00010999,2]
[333490922,1722195041626,-343.79,0.00010999,2]
[333490923,1722195041635,-500.0,0.00010999,2]
[333490924,1722195041644,-500.0,0.00010999,2]
[333490925,1722195041654,-500.0,0.00010999,2]
[333490926,1722195041663,-500.0,0.00010999,2]
[333490927,1722195041672,-500.0,0.00010999,2]
[333490928,1722195041681,-500.0,0.00010999,2]
[333490929,1722195041690,-500.0,0.00010999,2]
[333490930,1722195041703,-500.0,0.00010999,2]
[333490931,1722195041713,-438.43,0.00010999,2]
[333490932,1722195041722,-500.0,0.00010999,2]
[333490933,1722195041731,-632.0,0.00010999,2]
[333490934,1722195041740,-442.09227798,0.00010999,2]
[333490935,1722195041749,-500.0,0.00010999,2]
[333490936,1722195041761,-500.0,0.00010999,2]
[333490937,1722195041770,-500.0,0.00010999,2]
[333490938,1722195041779,-464.02,0.00010999,2]
[333490939,1722195041788,-500.0,0.00010999,2]
[333490940,1722195041797,-500.0,0.00010999,2]
[333490941,1722195041807,-500.0,0.00010999,2]
[333490942,1722195041816,-416.66,0.00010999,2]
[333490943,1722195041825,-500.0,0.00010999,2]
[333490944,1722195041835,-500.0,0.00010999,2]
[333490945,1722195041844,-239.6,0.00010999,2]
[333490946,1722195041857,-500.0,0.00010999,2]
[333490947,1722195041867,-500.0,0.00010999,2]
[333490948,1722195041876,-500.0,0.00010999,2]
[333490949,1722195041885,-500.0,0.00010999,2]
[333490950,1722195041894,-381.02,0.00010999,2]
[333490951,1722195041903,-500.0,0.00010999,2]
[333490952,1722195041913,-232.5647611,0.00010999,2]
[333490953,1722195041922,-500.0,0.00010999,2]
[333490954,1722195041931,-500.0,0.00010999,2]
[333490955,1722195041940,-334.07,0.00010999,2]
[333490956,1722195041950,-500.0,0.00010999,2]
[333490957,1722195041959,-500.0,0.00010999,2]
[333490958,1722195041968,-500.0,0.00010999,2]
[333490959,1722195041978,-500.0,0.00010999,2]
[333490960,1722195041987,-500.0,0.00010999,2]
[333490961,1722195041999,-280.21,0.00010999,2]
[333490962,1722195042008,-500.0,0.00010999,2]
[333490963,1722195042018,-500.0,0.00010999,2]
[333490964,1722195042027,-261.73,0.00010999,2]
[333490965,1722195042036,-500.0,0.00010999,2]
[333490966,1722195042046,-648.08,0.00010999,2]
[333490967,1722195042056,-500.0,0.00010999,2]
[333490968,1722195042066,-531.04,0.00010999,2]
[333490969,1722195042075,-500.0,0.00010999,2]
[333490970,1722195042084,-200.15,0.00010999,2]
[333490971,1722195042094,-594.05,0.00010999,2]
[333490972,1722195042103,-500.0,0.00010999,2]
[333490973,1722195042112,-500.0,0.00010999,2]
[333490974,1722195042121,-500.0,0.00010999,2]
[333490975,1722195042131,-648.82,0.00010999,2]
[333490976,1722195042139,-500.0,0.00010999,2]
[333490977,1722195042149,-500.0,0.00010999,2]
[333490978,1722195042158,-500.0,0.00010999,2]
[333490979,1722195042167,-508.07,0.00010999,2]
[333490980,1722195042177,-500.0,0.00010999,2]
[333490981,1722195042185,-500.0,0.00010999,2]
[333490982,1722195042195,-238.95,0.00010999,2]
[333490983,1722195042205,-500.0,0.00010999,2]
[333490984,1722195042214,-500.0,0.00010999,2]
[333490985,1722195042223,-429.38,0.00010999,2]
[333490986,1722195042232,-500.0,0.00010999,2]
[333490987,1722195042241,-623.6,0.00010999,2]
[333490988,1722195042250,-500.0,0.00010999,2]
[333490989,1722195042260,-500.0,0.00010999,2]
[333490990,1722195042269,-500.0,0.00010999,2]
[333490991,1722195042278,-500.0,0.00010999,2]
[333490992,1722195042288,-500.0,0.00010999,2]
[333490993,1722195042297,-538.46,0.00010999,2]
[333490994,1722195042306,-500.0,0.00010999,2]
[333490995,1722195042315,-500.0,0.00010999,2]
[333490996,1722195042324,-461.9,0.00010999,2]
[333490997,1722195042333,-500.0,0.00010999,2]
[333490998,1722195042343,-500.0,0.00010999,2]
[333490999,1722195042352,-612.97,0.00010999,2]
[333491000,1722195042361,-500.0,0.00010999,2]
[333491001,1722195042370,-500.0,0.00010999,2]
[333491002,1722195042379,-500.0,0.00010999,2]
[333491003,1722195042389,-500.0,0.00010999,2]
[333491004,1722195042398,-528.09,0.00010999,2]
[333491005,1722195042407,-500.0,0.00010999,2]
[333491006,1722195042416,-500.0,0.00010999,2]
[333491007,1722195042426,-345.47,0.00010999,2]
[333491008,1722195042436,-174.56,0.00010999,2]
[333491009,1722195042445,-586.4,0.00010999,2]
[333491010,1722195042456,-500.0,0.00010999,2]
[333491011,1722195042466,-500.0,0.00010999,2]
[333491012,1722195042476,-622.72,0.00010999,2]
[333491013,1722195042485,-541.3,0.00010999,2]
[333491014,1722195042495,-500.0,0.00010999,2]
[333491015,1722195042505,-500.0,0.00010999,2]
[333491016,1722195042515,-500.0,0.00010999,2]
[333491017,1722195042525,-500.0,0.00010999,2]
[333491018,1722195042534,-500.0,0.00010999,2]
[333491019,1722195042544,-500.0,0.00010999,2]
[333491020,1722195042554,-448.24,0.00010999,2]
[333491021,1722195042564,-500.0,0.00010999,2]
[333491022,1722195042574,-500.0,0.00010999,2]
[333491023,1722195042583,-500.0,0.00010999,2]
[333491024,1722195042593,-217.67,0.00010999,2]
[333491025,1722195042602,-500.0,0.00010999,2]
[333491026,1722195042611,-500.0,0.00010999,2]
[333491027,1722195042620,-285.39,0.00010999,2]
[333491028,1722195042629,-500.0,0.00010999,2]
[333491029,1722195042639,-500.0,0.00010999,2]
[333491030,1722195042648,-500.0,0.00010999,2]
[333491031,1722195042657,-368.74,0.00010999,2]
[333491032,1722195042667,-500.0,0.00010999,2]
[333491033,1722195042676,-559.69,0.00010999,2]
[333491034,1722195042686,-500.0,0.00010999,2]
[333491035,1722195042695,-500.0,0.00010999,2]
[333491036,1722195042705,-405.96,0.00010999,2]
[333491037,1722195042714,-500.0,0.00010999,2]
[333491038,1722195042724,-500.0,0.00010999,2]
[333491039,1722195042733,-529.06,0.00010999,2]
[333491040,1722195042742,-500.0,0.00010999,2]
[333491042,1722195042752,-500.0,0.00010999,2]
[333491049,1722195042940,-500.0,0.00010999,2]
[333491052,1722195042951,-500.0,0.00010999,2]
[333491054,1722195042960,-154.56,0.00010999,2]
[333491055,1722195042970,-765.97,0.00010999,2]
[333491056,1722195042980,-765.97,0.00010999,2]
[333491057,1722195042990,-765.97,0.00010999,2]
[333491058,1722195043002,-765.97,0.00010999,2]
[333491059,1722195043012,-765.97,0.00010999,2]
[333491060,1722195043022,-765.97,0.00010999,2]
[333491061,1722195043032,-765.97,0.00010999,2]
[333491062,1722195043042,-500.0,0.00010999,2]
[333491063,1722195043051,-765.97,0.00010999,2]
[333491064,1722195043061,-500.0,0.00010999,2]
[333491065,1722195043071,-258.6,0.00010999,2]
[333491066,1722195043080,-765.97,0.00010999,2]
[333491067,1722195043090,-765.97,0.00010999,2]
[333491068,1722195043099,-765.97,0.00010999,2]
[333491069,1722195043109,-765.97,0.00010999,2]
[333491070,1722195043118,-765.97,0.00010999,2]
[333491071,1722195043128,-765.97,0.00010999,2]
[333491072,1722195043137,-765.97,0.00010999,2]
[333491073,1722195043147,-765.97,0.00010999,2]
[333491074,1722195043156,-765.97,0.00010999,2]
[333491075,1722195043166,-765.97,0.00010999,2]
[333491076,1722195043175,-765.97,0.00010999,2]
[333491077,1722195043184,-765.97,0.00010999,2]
[333491078,1722195043193,-765.97,0.00010999,2]
[333491079,1722195043203,-765.97,0.00010999,2]
[333491080,1722195043213,-765.97,0.00010999,2]
[333491081,1722195043223,-766.05000135,0.00010999,2]
[333491082,1722195043232,-558.27,0.00010999,2]
[333491083,1722195043242,-500.0,0.00010999,2]
[333491084,1722195043252,-526.24419114,0.00010999,2]
[333491085,1722195043261,-500.0,0.00010999,2]
[333491086,1722195043271,-500.0,0.00010999,2]
[333491087,1722195043280,-500.0,0.00010999,2]
[333491088,1722195043290,-340.74,0.00010999,2]
[333491089,1722195043299,-500.0,0.00010999,2]
[333491090,1722195043308,-500.0,0.00010999,2]
[333491091,1722195043318,-500.0,0.00010999,2]
[333491092,1722195043327,-518.17869614,0.00010999,2]
[333491093,1722195043336,-500.0,0.00010999,2]
[333491094,1722195043346,-591.89,0.00010999,2]
[333491095,1722195043355,-577.56,0.00010999,2]
[333491096,1722195043365,-500.0,0.00010999,2]
[333491097,1722195043374,-599.13,0.00010999,2]
[333491098,1722195043383,-500.0,0.00010999,2]
[333491099,1722195043393,-500.0,0.00010999,2]
[333491100,1722195043402,-500.0,0.00010999,2]
[333491101,1722195043412,-500.0,0.00010999,2]
[333491102,1722195043422,-174.32,0.00010999,2]
[333491103,1722195043431,-500.0,0.00010999,2]
[333491104,1722195043441,-500.0,0.00010999,2]
[333491105,1722195043451,-187.07,0.00010999,2]
[333491106,1722195043462,-500.0,0.00010999,2]
[333491107,1722195043471,-558.02,0.00010999,2]
[333491108,1722195043482,-500.0,0.00010999,2]
[333491109,1722195043492,-500.0,0.00010999,2]
[333491110,1722195043502,-500.0,0.00010999,2]
[333491111,1722195043512,-500.0,0.00010999,2]
[333491112,1722195043522,-342.68,0.00010999,2]
[333491113,1722195043532,-500.0,0.00010999,2]
[333491115,1722195043542,-584.08,0.00010999,2]
[333491117,1722195043551,-598.61,0.00010999,2]
[333491119,1722195043561,-500.0,0.00010999,2]
[333491121,1722195043570,-500.0,0.00010999,2]
[333491122,1722195043581,-424.74283868,0.00010999,2]
[333491123,1722195043590,-500.0,0.00010999,2]
[333491124,1722195043599,-607.02,0.00010999,2]
[333491125,1722195043609,-500.0,0.00010999,2]
[333491126,1722195043619,-500.0,0.00010999,2]
[333491127,1722195043628,-538.12,0.00010999,2]
[333491128,1722195043638,-500.0,0.00010999,2]
[333491129,1722195043647,-500.0,0.00010999,2]
[333491130,1722195043657,-500.0,0.00010999,2]
[333491131,1722195043666,-500.0,0.00010999,2]
[333491133,1722195043675,-500.0,0.00010999,2]
[333491134,1722195043685,-213.47,0.00010999,2]
[333491136,1722195043694,-500.0,0.00010999,2]
[333491138,1722195043704,-500.0,0.00010999,2]
[333491140,1722195043714,-500.0,0.00010999,2]
[333491142,1722195043724,-500.0,0.00010999,2]
[333491144,1722195043733,-274.48,0.00010999,2]
[333491146,1722195043742,-500.0,0.00010999,2]
[333491148,1722195043752,-194.18,0.00010999,2]
[333491150,1722195043761,-566.41,0.00010999,2]
[333491152,1722195043770,-500.0,0.00010999,2]
[333491154,1722195043780,-310.81239561,0.00010999,2]
[333491156,1722195043789,-558.47,0.00010999,2]
[333491158,1722195043799,-500.0,0.00010999,2]
[333491160,1722195043809,-500.0,0.00010999,2]
[333491162,1722195043819,-429.19,0.00010999,2]
[333491164,1722195043828,-500.0,0.00010999,2]
[333491166,1722195043838,-500.0,0.00010999,2]
[333491168,1722195043847,-500.0,0.00010999,2]
[333491170,1722195043856,-180.3,0.00010999,2]
[333491172,1722195043866,-500.0,0.00010999,2]
[333491174,1722195043875,-500.0,0.00010999,2]
[333491176,1722195043884,-500.0,0.00010999,2]
[333491178,1722195043894,-642.91,0.00010999,2]
[333491180,1722195043905,-500.0,0.00010999,2]
[333491182,1722195043915,-283.13,0.00010999,2]
[333491184,1722195043924,-500.0,0.00010999,2]
[333491186,1722195043934,-500.0,0.00010999,2]
[333491188,1722195043943,-207.7,0.00010999,2]
[333491190,1722195043952,-500.0,0.00010999,2]
[333491192,1722195043961,-500.0,0.00010999,2]
[333491194,1722195043970,-597.01,0.00010999,2]
[333491196,1722195043979,-500.0,0.00010999,2]
[333491198,1722195043989,-505.58,0.00010999,2]
[333491200,1722195044000,-500.0,0.00010999,2]
[333491202,1722195044010,-500.0,0.00010999,2]
[333491204,1722195044019,-500.0,0.00010999,2]
[333491206,1722195044029,-500.0,0.00010999,2]
[333491208,1722195044038,-500.0,0.00010999,2]
[333491210,1722195044049,-458.41168727,0.00010999,2]
[333491212,1722195044060,-500.0,0.00010999,2]
[333491214,1722195044070,-500.0,0.00010999,2]
[333491216,1722195044080,-586.1,0.00010999,2]
[333491218,1722195044091,-500.0,0.00010999,2]
[333491220,1722195044101,-500.0,0.00010999,2]
[333491223,1722195044111,-500.0,0.00010999,2]
[333491225,1722195044122,-500.0,0.00010999,2]
[333491227,1722195044132,-500.0,0.00010999,2]
[333491229,1722195044142,-540.11,0.00010999,2]
[333491231,1722195044153,-500.0,0.00010999,2]
[333491233,1722195044164,-500.0,0.00010999,2]
[333491235,1722195044175,-500.0,0.00010999,2]
[333491237,1722195044185,-500.0,0.00010999,2]
[333491239,1722195044197,-500.0,0.00010999,2]
[333491241,1722195044207,-228.06,0.00010999,2]
[333491243,1722195044217,-500.0,0.00010999,2]
[333491245,1722195044226,-500.0,0.00010999,2]
[333491247,1722195044236,-476.21,0.00010999,2]
[333491250,1722195044246,-608.05,0.00010999,2]
[333491251,1722195044255,-584.17,0.00010999,2]
[333491253,1722195044264,-620.18,0.00010999,2]
[333491256,1722195044274,-500.0,0.00010999,2]
[333491257,1722195044283,-500.0,0.00010999,2]
[333491259,1722195044293,-409.25,0.00010999,2]
[333491261,1722195044302,-500.0,0.00010999,2]
[333491263,1722195044312,-500.0,0.00010999,2]
[333491266,1722195044322,-500.0,0.00010999,2]
[333491268,1722195044333,-500.0,0.00010999,2]
[333491270,1722195044343,-500.0,0.00010999,2]
[333491271,1722195044352,-500.0,0.00010999,2]
[333491273,1722195044362,-470.85,0.00010999,2]
[333491276,1722195044372,-500.0,0.00010999,2]
[333491278,1722195044382,-170.83,0.00010999,2]
[333491280,1722195044393,-603.98,0.00010999,2]
[333491282,1722195044402,-623.75,0.00010999,2]
[333491284,1722195044412,-500.0,0.00010999,2]
[333491286,1722195044421,-500.0,0.00010999,2]
[333491288,1722195044431,-500.0,0.00010999,2]
[333491290,1722195044440,-340.63276615,0.00010999,2]
[333491292,1722195044449,-500.0,0.00010999,2]
[333491294,1722195044460,-500.0,0.00010999,2]
[333491296,1722195044470,-500.0,0.00010999,2]
[333491298,1722195044480,-178.11,0.00010999,2]
[333491300,1722195044489,-500.0,0.00010999,2]
[333491302,1722195044498,-627.61,0.00010999,2]
[333491303,1722195044507,-500.0,0.00010999,2]
[333491306,1722195044517,-354.72883764,0.00010999,2]
[333491307,1722195044527,-629.98,0.00010999,2]
[333491309,1722195044536,-500.0,0.00010999,2]
[333491311,1722195044546,-408.45,0.00010999,2]
[333491313,1722195044555,-500.0,0.00010999,2]
[333491315,1722195044564,-500.0,0.00010999,2]
[333491317,1722195044574,-500.0,0.00010999,2]
[333491319,1722195044583,-561.63,0.00010999,2]
[333491321,1722195044592,-500.0,0.00010999,2]
[333491323,1722195044602,-500.0,0.00010999,2]
[333491325,1722195044612,-500.0,0.00010999,2]
[333491327,1722195044621,-392.97,0.00010999,2]
[333491328,1722195044630,-500.0,0.00010999,2]
[333491330,1722195044639,-203.03,0.00010999,2]
[333491332,1722195044649,-500.0,0.00010999,2]
[333491334,1722195044659,-500.0,0.00010999,2]
[333491336,1722195044668,-500.0,0.00010999,2]
[333491338,1722195044678,-500.0,0.00010999,2]
[333491340,1722195044688,-185.36074811,0.00010999,2]
[333491342,1722195044698,-500.0,0.00010999,2]
[333491344,1722195044708,-500.0,0.00010999,2]
[333491346,1722195044718,-500.0,0.00010999,2]
[333491348,1722195044727,-500.0,0.00010999,2]
[333491350,1722195044739,-505.51645021,0.00010999,2]
[333491352,1722195044748,-521.44318783,0.00010999,2]
[333491354,1722195044757,-120195.53667277,0.00011,2]
[333491362,1722195044819,-254.25,0.00011,2]
[333491364,1722195044831,-39212.85223734,0.00011,2]
[333491374,1722195044914,-494.33920324,0.00011,2]
[333491377,1722195044930,-9022.73171167,0.00011,2]
[333491379,1722195044942,-632.52348141,0.00011,2]
[333491381,1722195044952,-1625.7938459,0.00011,2]
[333491383,1722195044967,-24935.22661887,0.00011,2]
[333491386,1722195044978,-735.84618587,0.00011,2]
[333491388,1722195044994,-296.18044634,0.00011,2]
[333491390,1722195045009,-1642.34070003,0.00011,2]
[333491440,1722195046113,-694.15491936,0.00011,2]
[333491441,1722195046124,-1450.0,0.00011,2]
[333491442,1722195046166,-1069.93556793,0.00011,2]
[333491443,1722195046217,-7000.0,0.00011,2]
[333491444,1722195046228,-455.12534541,0.00011,2]
[333491445,1722195046268,-2733.97298494,0.00011,2]
[333491446,1722195046321,-302.37828706,0.00011,2]
[333491447,1722195046482,-1064.7,0.00011,2]
[333491518,1722196232171,-385.0,8.218e-05,2]
[333491519,1722196232182,-197.92504737,8.219e-05,2]
[333491520,1722196232226,-426.21495263,8.219e-05,2]
[333491521,1722196232236,-125.0779324,9.706e-05,2]
[333491522,1722196232248,-124.9220676,9.706e-05,2]
[333491523,1722196232259,-290.17515021,9.775e-05,2]
[333491524,1722196232270,-308.807424,9.775e-05,2]
[333491525,1722196232282,-719.56763967,9.775e-05,2]
[333491526,1722196232293,-269.0000005,9.775e-05,2]
[333491527,1722196232334,-6310.96790771,9.775e-05,2]
[333491528,1722196232345,-15991.48187791,9.775e-05,2]
[333491529,1722196232355,-600.0,9.782e-05,2]
[333491530,1722196232366,-4797.62,9.795e-05,2]
[333491531,1722196232375,-250.0,9.953e-05,2]
[333491532,1722196232385,-150.0,0.0001,2]
[333491533,1722196232394,-499.99,0.00010194,2]
[333491534,1722196232405,-518.7721,0.00010226,2]
[333491535,1722196232419,-400.0,0.00010316,2]
[333491536,1722196232428,-624.14,0.00010468,2]
[333491537,1722196232438,-150.0,0.0001056,2]
[333491538,1722196232447,-788.0,0.000107,5]
[333491539,1722196232458,-893.2677,0.0001078,2]
[333491540,1722196232468,-2364.5869,0.0001078,2]
[333491541,1722196232478,-1000.0,0.00010899,2]
[333491542,1722196232488,-2500.0,0.000109,2]
[333491543,1722196232498,-174.95524457,0.000109,2]
[333491544,1722196232507,-463.6600002,0.00010958,2]
[333491545,1722196232516,-399.43625602,0.00010958,2]
[333491546,1722196232529,-500.0,0.00010958,2]
[333491547,1722196232538,-500.0,0.00010958,2]
[333491548,1722196232548,-972.32437006,0.0001097,2]
[333491549,1722196232557,-29350.8368933,0.00010997,2]
[333491550,1722196232567,-249.146,0.00010998,2]
[333491551,1722196232576,-150.0,0.00010998,2]
[333491552,1722196232586,-390.54,0.00010998,2]
[333491553,1722196232596,-209.01772362,0.00010998,2]
[333491554,1722196232605,-855.84,0.00010999,2]
[333491555,1722196232615,-667746.02910032,0.00011,2]
[333491556,1722196232627,-315.29707946,0.00011,2]
[333491557,1722196232639,-296.67205621,0.00011,2]
[333491558,1722196232650,-3360.830244,0.00011,2]
[333491559,1722196232661,-1205.48616,0.00011,2]
[333491560,1722196232677,-1231.85132041,0.00011,2]
[333491561,1722196232688,-311.84172578,0.00011,2]
[333491562,1722196232699,-833.36001832,0.00011,2]
[333491563,1722196232711,-537.12016184,0.00011,2]
[333491564,1722196232727,-2323.0117673,0.00011,2]
[333491565,1722196232741,-2039.97,0.00011,2]
[333491566,1722196232752,-2852.80510775,0.00011,2]
[333491585,1722196233000,-3440.07294455,0.00011,2]
[333491588,1722196238316,-190419.01614407,0.00011,2]
[333491589,1722196238326,-1292464.78286443,0.00011,2]
[333491590,1722196238337,-1479.70572838,0.00011,2]
[333491591,1722196238352,-2494.14740935,0.00011,2]
[333491592,1722196238367,-345.0,0.00011,2]
[333491593,1722196238397,-1908.71029907,0.00011,2]
[333491594,1722196238409,-19058.04257178,0.00011,2]
[333491595,1722196238505,-33412.84000002,0.00011,2]
[333491608,1722196240494,-820.3361697,0.00011,2]
[333491609,1722196240549,-19794.0,0.00011,2]
[333491640,1722196243355,-1259.08602691,0.000109,2]
[333491641,1722196243484,-2852.30238517,0.000109,2]
[333491642,1722196243494,-7964.31120391,0.00011,2]
[333491663,1722196246263,-366.407,0.00011,2]
[333491664,1722196246370,-933.17494973,0.00011,2]
[333491665,1722196246688,-608.60250996,0.00011,2]
[333491666,1722196246700,-323.60861225,0.00011,2]
[333491670,1722196835728,160.0,0.00012,30]
[333491672,1722196922958,5188.18,0.00021,120]
[333491706,1722197432405,-611.97,8.219e-05,2]
[333491707,1722197432415,-229.91482517,9.167e-05,2]
[333491708,1722197432459,-718.42740746,9.167e-05,2]
[333491709,1722197432566,-551.65776737,9.167e-05,2]
[333491710,1722197432576,-1500.0,9.438e-05,2]
[333491711,1722197432585,-1500.0,9.629e-05,2]
[333491712,1722197432595,-250.0,9.669e-05,2]
[333491713,1722197432604,-23890.0,9.67e-05,2]
[333491714,1722197432614,-1000.0,9.704e-05,2]
[333491715,1722197432623,-1500.0,9.764e-05,2]
[333491716,1722197432633,-1500.0,9.904e-05,2]
[333491717,1722197432642,-1250.0,0.0001,2]
[333491718,1722197432651,-1500.0,0.00010075,2]
[333491719,1722197432660,-499.99,0.00010075,2]
[333491720,1722197432670,-1500.0,0.00010171,2]
[333491721,1722197432679,-1500.0,0.00010222,2]
[333491722,1722197432688,-1500.0,0.00010247,2]
[333491723,1722197432699,-1500.0,0.00010286,2]
[333491724,1722197432708,-611.97,0.00010475,2]
[333491725,1722197432717,-1500.0,0.0001051,2]
[333491726,1722197432727,-1500.0,0.00010705,2]
[333491727,1722197432736,-1500.0,0.00010831,2]
[333491728,1722197432746,-1500.0,0.00010841,2]
[333491729,1722197432755,-1500.0,0.00010863,2]
[333491730,1722197432764,-15585.4888,0.00010899,2]
[333491731,1722197432773,-348.7569,0.000109,2]
[333491732,1722197432783,-3355.55,0.000109,2]
[333491733,1722197432792,-2500.0,0.000109,2]
[333491734,1722197432801,-1000.0,0.000109,2]
[333491735,1722197432811,-321.44547856,0.000109,2]
[333491736,1722197432821,-1559.971896,0.000109,2]
[333491737,1722197432830,-447.8963,0.000109,2]
[333491738,1722197432839,-1345.4023,0.000109,2]
[333491739,1722197432848,-12133.0553,0.000109,2]
[333491740,1722197432858,-293.64006704,0.000109,2]
[333491741,1722197432867,-170.5948962,0.000109,2]
[333491743,1722197432876,-537.68774118,0.000109,2]
[333491745,1722197432886,-253.432325,0.000109,2]
[333491747,1722197432895,-12000.0,0.000109,2]
[333491749,1722197432905,-1000.0,0.00010916,2]
[333491750,1722197432914,-1500.0,0.00010961,2]
[333491751,1722197432924,-1216.37287104,0.00010997,2]
[333491752,1722197432933,-3420.475,0.00010998,2]
[333491753,1722197432944,-350.4599998,0.00010999,2]
[333491754,1722197432954,-1504.47847447,0.00010999,2]
[333491755,1722197432963,-216.42751419,0.00010999,2]
[333491756,1722197432973,-500.0,0.00010999,2]
[333491757,1722197432982,-159.27577004,0.00010999,2]
[333491758,1722197432992,-500.0,0.00010999,2]
[333491759,1722197433001,-311.76432359,0.00010999,2]
[333491760,1722197433010,-500.0,0.00010999,2]
[333491762,1722197433020,-166.24,0.00010999,2]
[333491764,1722197433029,-500.0,0.00010999,2]
[333491766,1722197433039,-500.0,0.00010999,2]
[333491768,1722197433048,-500.0,0.00010999,2]
[333491770,1722197433058,-500.0,0.00010999,2]
[333491771,1722197433067,-500.0,0.00010999,2]
[333491773,1722197433077,-500.0,0.00010999,2]
[333491775,1722197433087,-500.0,0.00010999,2]
[333491777,1722197433096,-500.0,0.00010999,2]
[333491779,1722197433106,-500.0,0.00010999,2]
[333491780,1722197433116,-500.0,0.00010999,2]
[333491781,1722197433125,-500.0,0.00010999,2]
[333491782,1722197433134,-500.0,0.00010999,2]
[333491783,1722197433143,-500.0,0.00010999,2]
[333491784,1722197433156,-500.0,0.00010999,2]
[333491785,1722197433165,-430.40012191,0.00010999,2]
[333491786,1722197433175,-519.32607184,0.00010999,2]
[333491787,1722197433185,-500.0,0.00010999,2]
[333491788,1722197433195,-500.0,0.00010999,2]
[333491789,1722197433204,-383.95,0.00010999,2]
[333491790,1722197433213,-482.70627952,0.00010999,2]
[333491791,1722197433222,-500.0,0.00010999,2]
[333491792,1722197433232,-500.0,0.00010999,2]
[333491793,1722197433241,-500.0,0.00010999,2]
[333491794,1722197433250,-553.01,0.00010999,2]
[333491795,1722197433260,-535.03565181,0.00010999,2]
[333491796,1722197433269,-500.0,0.00010999,2]
[333491797,1722197433280,-500.0,0.00010999,2]